Workbook

Sheet Quadro Resumo
A1: Anexo 4 – Planilha de Custos e Formação de Preços.
A3: QUADRO RESUMO
A4: Composição dos Custos | B4: Mensal
A5: Custos Fixos Motorista (Módulos de 1 a 6 - Custos diretos e indiretos) | B5: =TRUNC('Motorista - Módulos 1 a 6'!D118,2) -> 6298.96
A6: Custos Fixos Operador de Perfuratriz (Módulos de 1 a 6 - Custos diretos e indiretos) | B6: =TRUNC('Perfuratriz - Módulos 1 a 6'!D117,2) -> 6032.62
A7: Custos Fixos Servente (Módulos de 1 a 6 - Custos diretos e indiretos) | B7: =TRUNC('Servente - Módulos 1 a 6'!D117,2) -> 4592.54
A8: Custos Fixos Compressorista (Módulos de 1 a 6 - Custos diretos e indiretos) | B8: =TRUNC('Compressor - Módulos 1 a 6'!D117,2) -> 4924.25
A9: Custos Fixos Munck (Módulos de 1 a 6 - Custos diretos e indiretos) | B9: =TRUNC('Munck - Módulos 1 a 6'!D118,2) -> 6298.96
A10: Custos Variáveis (Módulo 7 - Diárias) | B10: =TRUNC('Diárias - Módulo 7'!C27,2) -> 4727.99
A11: Total Motorista (Custos Fixos + Custos Variáveis) - 1 Posto de Trabalho | B11: =B5+$B$10 -> 11026.95
A12: Total Operador de Perfuratriz (Custos Fixos + Custos Variáveis) - 1 Posto de Trabalho | B12: =B6+$B$10 -> 10760.61
A13: Total Servente (Custos Fixos + Custos Variáveis) - 1 Posto de Trabalho | B13: 9320.53
A14: Total Compressorista (Custos Fixos + Custos Variáveis) - 1 Posto de Trabalho | B14: 9652.24
A15: Total Munck (Custos Fixos + Custos Variáveis) - 1 Posto de Trabalho | B15: 11026.95
A16: ="Total Mensal (Custos Fixos + Custos Variáveis)" -> Total Mensal (Custos Fixos + Custos Variáveis) | B16: =TRUNC(B11*'Motorista - Módulos 1 a 6'!D10+B12*'Perfuratriz - Módulos 1 a 6'!D10+B13*'Servente - Módulos 1 a 6'!D10+B14*'Compressor - Módulos 1 a 6'!D10+B15*'Munck - Módulos 1 a 6'!D10,2) -> 61107.81
A18: Rendimento de Execução de Poços pela 7ªSR Mensal (m) | B18: 1437
A19: ="Total de Execução de Poços Anual (m)" -> Total de Execução de Poços Anual (m) | B19: =TRUNC(B18*12,2) -> 17244
A21: ="Total Custo de Equipe por Metro Linear de Poço" -> Total Custo de Equipe por Metro Linear de Poço | B21: =TRUNC(B16/B18,2) -> 42.52
A22: ="Total Custo de Equipe Anual" -> Total Custo de Equipe Anual | B22: =TRUNC(B21*B19,2) -> 733214.88

Sheet Motorista - Módulos 1 a 6
A1: MÓDULOS 1 A 6 (CUSTOS FIXOS)
A2: Planilha de Custos e Formação de Preços
A3: =D8 -> Motorista de Caminhão Truk
A4: Discriminação dos Serviços
A5: Data de apresentação da proposta | D5: 2025-05-16
A6: Município | D6: Teresina - PI
A7: Ano do Acordo, Convenção ou Dissídio Coletivo | D7: MR022354/2025
A8: Tipo de Serviço | D8: Motorista de Caminhão Truk
A9: Unidade de Medida | D9: Posto
A10: Quantidade máxima passível de contratação em função da unidade de medida | D10: 1
A11: Nº de meses de execução contratual | D11: 12
A12: Regime Tributário da Empresa
A13: Se Optante pelo Simples Nacional, preencher o faturamento acumulado dos últimos 12 meses
A15: Dados complementares para composição dos custos referente à mão-de-obra
A16: 1 | B16: Tipo de Serviço | D16: =D8 -> Motorista de Caminhão Truk
A17: 2 | B17: Classificação Brasileira de Ocupações (CBO) | D17: 7825-10
A18: 3 | B18: Salário Nominativo da Categoria Profissional (Cláusula 2 e 3ª da Convenção Coletiva de Trabalho) | D18: 2226.4
A19: 4 | B19: Categoria profissional (vinculada à execução contratual) | D19: SITRICOM
A20: 5 | B20: Data base da categoria (dia/mês/ano) | D20: 2024-11-01
A22: MÓDULO 1 - COMPOSIÇÃO DA REMUNERAÇÃO
A23: 1 | B23: COMPOSIÇÃO DA REMUNERAÇÃO | C23: % | D23: VALOR (R$)
A24: A | B24: Salário Base (Cláusula 2 e 3ª da Convenção Coletiva de Trabalho) | D24: =D18 -> 2226.4
A25: B | B25: Adicional Periculosidade (Cláusulas 12ª da Convenção Coletiva de Trabalho) | D25: 0
A26: C | B26: Adicional Insalubridade (Cláusulas 12ª da Convenção Coletiva de Trabalho) | D26: 0
A27: D | B27: Adicional Noturno (Cláusulas 11ª da Convenção Coletiva de Trabalho) | D27: 0
A28: E | B28: Adicional de Hora Noturna Reduzida (Cláusulas 11ª da Convenção Coletiva de Trabalho) | D28: 0
A29: F | B29: Adicional de Hora Extra no Feriado Trabalhado (Cláusulas 10ª da Convenção Coletiva de Trabalho) | D29: 0
A30: TOTAL DO MÓDULO 1 | D30: =TRUNC(SUM(D24:D29),2) -> 2226.4
A32: MÓDULO 2 – ENCARGOS E BENEFÍCIOS ANUAIS, MENSAIS E DIÁRIOS
A33: Submódulo 2.1 - 13º Salário, Férias e Adicional de Férias | C33: % | D33: VALOR (R$)
A34: A | B34: 13º (décimo terceiro) Salário (SINAPI - Composição de Encargos Sociais - 12/2023) | C34: =1/12 -> 0.08333333333 | D34: =$D$30*C34 -> 185.5333333
A35: B | B35: Férias e 1/3 Constitucional (ANEXO XII da Instrução Normativa Nº 5, de 26 de Maio De 2017) | C35: 0.121 | D35: =C35*D30 -> 269.3944
A36: TOTAL SUBMÓDULO 2.1 | C36: =TRUNC(SUM(C34:C35),4) -> 0.2043 | D36: =TRUNC(SUM(D34:D35),2) -> 454.92
A38: Submódulo 2.2 - GPS, FGTS e Outras Contribuições | C38: % | D38: VALOR (R$)
A39: A | B39: INSS (SINAPI - Composição de Encargos Sociais - 12/2023) | C39: 0.2 | D39: =($D$30+$D$36)*C39 -> 536.264
A40: B | B40: Salário Educação (SINAPI - Composição de Encargos Sociais - 12/2023) | C40: 0.025 | D40: =($D$30+$D$36)*C40 -> 67.033
A41: C | B41: SAT (SINAPI - Composição de Encargos Sociais - 12/2023) | C41: 0.03 | D41: =($D$30+$D$36)*C41 -> 80.4396
A42: D | B42: SESC ou SESI (SINAPI - Composição de Encargos Sociais - 12/2023) | C42: 0.015 | D42: 40.2198
A43: E | B43: SENAI - SENAC (SINAPI - Composição de Encargos Sociais - 12/2023) | C43: 0.01 | D43: 26.8132
A44: F | B44: SEBRAE (SINAPI - Composição de Encargos Sociais - 12/2023) | C44: 0.006 | D44: 16.08792
A45: G | B45: INCRA (SINAPI - Composição de Encargos Sociais - 12/2023) | C45: 0.002 | D45: 5.36264
A46: H | B46: FGTS (SINAPI - Composição de Encargos Sociais - 12/2023) | C46: 0.08 | D46: 214.5056
A47: I | B47: Contribuição Social (Cláusula 60ª da Convenção Coletiva de Trabalho) | C47: 0.01 | D47: =($D$30+$D$36)*C47 -> 26.8132
A48: J | B48: Contribuição Negocial (Cláusula 59ª da Convenção Coletiva de Trabalho) | C48: =0.05/12 -> 0.004166666667 | D48: 11.17216667
A49: L | B49: Contribuição Confederativa (Cláusula 61ª da Convenção Coletiva de Trabalho) | C49: 0.01 | D49: 26.8132
A50: TOTAL SUBMÓDULO 2.2 | C50: =SUM(C39:C49) -> 0.3921666667 | D50: =TRUNC(SUM(D39:D49),2) -> 1051.52
A52: Submódulo 2.3 - Benefícios Mensais e Diários | D52: VALOR (R$)
A53: A | B53: Auxílio Transporte ((Tarifa de transporte municipal*2*22 dias) – 6%* Vencimento Básico) | C53: 4 | D53: =(C53*2*22)-(D24*6%) -> 42.416
A54: B | B54: Auxílio Refeição/Alimentação (Cláusula 15ª da Convenção Coletiva de Trabalho) | C54: 239.52 | D54: =C54 -> 239.52
A55: TOTAL SUBMÓDULO 2.3 | D55: =TRUNC(SUM(D53:D54),2) -> 281.93
A57: QUADRO-RESUMO DO MÓDULO 2 - ENCARGOS, BENEFÍCIOS ANUAIS, MENSAIS E DIÁRIOS
A58: Módulo 2 - Encargos, Benefícios Anuais, Mensais e Diários | D58: VALOR (R$)
A59: 2.1 | B59: 13º Salário, Férias e Adicional de Férias | D59: =D36 -> 454.92
A60: 2.2 | B60: GPS, FGTS e Outras Contribuições | D60: =D50 -> 1051.52
A61: 2.3 | B61: Benefícios Mensais e Diários | D61: =D55 -> 281.93
A62: TOTAL DO MÓDULO 2 | D62: =TRUNC(SUM(D59:D61),2) -> 1788.37
A64: MÓDULO 3 – PROVISÃO PARA RESCISÃO
A65: 3 | B65: PROVISÃO PARA RESCISÃO | C65: % | D65: VALOR (R$)
A66: A | B66: Aviso prévio indenizado (SINAPI - Composição de Encargos Sociais - 12/2023) | C66: 0.0403 | D66: =$D$30*C66 -> 89.72392
A67: B | B67: Incidência do FGTS sobre o Aviso prévio indenizado | C67: =$C$46*C66 -> 0.003224 | D67: =C67*D30 -> 7.1779136
A68: D | B68: Aviso prévio trabalhado (SINAPI - Composição de Encargos Sociais -12/2023) | C68: 0.0009 | D68: =$D$30*C68 -> 2.00376
A69: E | B69: Incidência do Submódulo 2.2 sobre o Aviso Prévio Trabalhado | C69: =$C$50*C68 -> 0.00035295 | D69: =$D$30*C69 -> 0.78580788
A70: F | B70: Multa do FGTS sobre o Aviso Prévio Indenizado e Aviso Prévio Trabalhado (SINAPI - Composição de Encargos Sociais - 12/2023) | C70: 0.05 | D70: =$D$30*C70 -> 111.32
A71: TOTAL DO MÓDULO 3 | C71: =TRUNC(SUM(C66:C70),4) -> 0.0947 | D71: =TRUNC(SUM(D66:D70),2) -> 211.01
A73: MÓDULO 4 – CUSTO DE REPOSIÇÃO DO PROFISSIONAL AUSENTE
A74: Base de Cálculo do Custo do Substituto (BCCS) = Módulos 1 + 2 + Férias - (V. Transporte e V. Alimentação) + 3 | D74: VALOR (R$)
A75: Módulo 1 - Remuneração | D75: =D18 -> 2226.4
A76: Módulo 2 - Encargos e Benefícios Anuais, Mensais e Diários | D76: =D62 -> 1788.37
A77: Acréscimo das Férias com incidência do 2.2 | D77: =1/12*D30*(1+C50) -> 258.2933222
A78: Desconto do Auxílio-Refeição | D78: =-D54 -> -239.52
A79: Módulo 3 - Provisão para Rescisão | D79: =D71 -> 211.01
A80: TOTAL BCCS | D80: =TRUNC(SUM(D75:D79),2) -> 4244.55
A82: Submódulo 4.1 - Substituto nas Ausências Legais | C82: % | D82: VALOR (R$)
A83: A | B83: Férias (SINAPI - Composição de Encargos Sociais - 12/2023) | C83: 0.1034 | D83: =$D$80*C83 -> 438.88647
A84: B | B84: Auxílio Doença (SINAPI - Composição de Encargos Sociais - a partir de 12/2023) | C84: 0.0064 | D84: 27.16512
A85: C | B85: Acidente de Trabalho (SINAPI - Composição de Encargos Sociais - a partir de 12/2023) | C85: 0.0008 | D85: 3.39564
A86: D | B86: Faltas Legais (SINAPI - Composição de Encargos Sociais - a partir de 12/2023) | C86: =(2/30)/12 -> 0.005555555556 | D86: 23.58083333
A87: E | B87: Férias sobre afastamento maternidade (SINAPI - Composição de Encargos Sociais - a partir de 12/2023) | C87: 0.0003 | D87: 1.273365
A88: F | B88: Licença paternidade (SINAPI - Composição de Encargos Sociais - a partir de 12/2023) | C88: 0.0004 | D88: 1.69782
A89: TOTAL MÓDULO 4 | C89: =TRUNC(SUM(C83:C88),4) -> 0.1168 | D89: =TRUNC(SUM(D83:D88),2) -> 495.99
A91: MÓDULO 5 – INSUMOS DIVERSOS
A92: 5 | B92: INSUMOS DIVERSOS | D92: VALOR (R$)
A93: A | B93: Uniformes | D93: ='Insumos - Módulo 5'!F17 -> 244.315
A94: B | B94: Certificado Digital | D94: ='Insumos - Módulo 5'!F22 -> 15.83333333
A95: TOTAL DO MÓDULO 5 | D95: =TRUNC(SUM(D93:D94),2) -> 260.14
A97: MÓDULO 6 – CUSTOS INDIRETOS, TRIBUTOS E LUCRO
A98: 6 | B98: CUSTOS INDIRETOS, TRIBUTOS E LUCRO | C98: % | D98: VALOR (R$)
A99: A | B99: Custos Indiretos | C99: 0.05 | D99: =TRUNC(C99*D116,2) -> 249.09
A100: B | B100: Subtotal 1 (A + Total Custos Diretos) | D100: =D99+D116 -> 5231
A101: C | B101: Lucro | C101: 0.1 | D101: =TRUNC(C101*(D99+D116),2) -> 523.1
A102: D | B102: Subtotal 2 (B+C) | D102: =D100+D101 -> 5754.1
A103: E | B103: TRIBUTOS Tributos (estimado com base no Lucro Presumido - a empresa deverá preencher de acordo com o regime tributário a que é submetida) - (E=(D/(1-Tributos%))x(Tributos%) | C103: 0.0865 | D103: =(D102/(1-C103))*C103 -> 544.8600438
A104: E.1 | B104: COFINS | C104: 0.03
A105: E.2 | B105: PIS | C105: 0.0065
A106: E.3 | B106: ISS | C106: 0.05
A107: TOTAL DO MÓDULO 6 (A+C+E) | D107: =D99+D101+D103 -> 1317.050044
A109: QUADRO RESUMO DO CUSTO POR EMPREGADO
A110: Módulo | D110: VALOR (R$)
A111: A | B111: =A22 -> MÓDULO 1 - COMPOSIÇÃO DA REMUNERAÇÃO | D111: =D30 -> 2226.4
A112: B | B112: =A32 -> MÓDULO 2 – ENCARGOS E BENEFÍCIOS ANUAIS, MENSAIS E DIÁRIOS | D112: =D62 -> 1788.37
A113: C | B113: =A64 -> MÓDULO 3 – PROVISÃO PARA RESCISÃO | D113: =D71 -> 211.01
A114: D | B114: =A73 -> MÓDULO 4 – CUSTO DE REPOSIÇÃO DO PROFISSIONAL AUSENTE | D114: =D89 -> 495.99
A115: E | B115: =A91 -> MÓDULO 5 – INSUMOS DIVERSOS | D115: =D95 -> 260.14
A116: Subtotal (A + B + C + D + E) - Custos Diretos | D116: =TRUNC(SUM(D111:D115),2) -> 4981.91
A117: F | B117: =A97 -> MÓDULO 6 – CUSTOS INDIRETOS, TRIBUTOS E LUCRO | D117: =D107 -> 1317.050044
A118: PREÇO TOTAL POR EMPREGADO / MÊS (CUSTO FIXO) | D118: =D117+D116 -> 6298.960044

Sheet Perfuratriz - Módulos 1 a 6
A1: MÓDULOS 1 A 6 (CUSTOS FIXOS)
A2: Planilha de Custos e Formação de Preços
A3: =D8 -> Operador de máquina perfuratriz
A4: Discriminação dos Serviços
A5: Data de apresentação da proposta | D5: 2025-05-16
A6: Município | D6: Teresina - PI
A7: Ano do Acordo, Convenção ou Dissídio Coletivo | D7: MR022354/2025
A8: Tipo de Serviço | D8: Operador de máquina perfuratriz
A9: Unidade de Medida | D9: Posto
A10: Quantidade máxima passível de contratação em função da unidade de medida | D10: 1
A11: Nº de meses de execução contratual | D11: 12
A12: Regime Tributário da Empresa
A13: Se Optante pelo Simples Nacional, preencher o faturamento acumulado dos últimos 12 meses
A15: Dados complementares para composição dos custos referente à mão-de-obra
A16: 1 | B16: Tipo de Serviço | D16: =D8 -> Operador de máquina perfuratriz
A17: 2 | B17: Classificação Brasileira de Ocupações (CBO) | D17: 7112-30
A18: 3 | B18: Salário Nominativo da Categoria Profissional (Cláusula 2 e 3ª da Convenção Coletiva de Trabalho) | D18: 2125.2
A19: 4 | B19: Categoria profissional (vinculada à execução contratual) | D19: SITRICOM
A20: 5 | B20: Data base da categoria (dia/mês/ano) | D20: 2025-11-01
A22: MÓDULO 1 - COMPOSIÇÃO DA REMUNERAÇÃO
A23: 1 | B23: COMPOSIÇÃO DA REMUNERAÇÃO | C23: % | D23: VALOR (R$)
A24: A | B24: Salário Base (Cláusula 2 e 3ª da Convenção Coletiva de Trabalho) | D24: =D18 -> 2125.2
A25: B | B25: Adicional Periculosidade (Cláusulas 12ª da Convenção Coletiva de Trabalho) | D25: 0
A26: C | B26: Adicional Insalubridade (Cláusulas 12ª da Convenção Coletiva de Trabalho) | D26: 0
A27: D | B27: Adicional Noturno (Cláusulas 11ª da Convenção Coletiva de Trabalho) | D27: 0
A28: E | B28: Adicional de Hora Noturna Reduzida (Cláusulas 11ª da Convenção Coletiva de Trabalho) | D28: 0
A29: F | B29: Adicional de Hora Extra no Feriado Trabalhado (Cláusulas 10ª da Convenção Coletiva de Trabalho) | D29: 0
A30: TOTAL DO MÓDULO 1 | D30: =TRUNC(SUM(D24:D29),2) -> 2125.2
A32: MÓDULO 2 – ENCARGOS E BENEFÍCIOS ANUAIS, MENSAIS E DIÁRIOS
A33: Submódulo 2.1 - 13º Salário, Férias e Adicional de Férias | C33: % | D33: VALOR (R$)
A34: A | B34: 13º (décimo terceiro) Salário (SINAPI - Composição de Encargos Sociais - 12/2023) | C34: =1/12 -> 0.08333333333 | D34: =$D$30*C34 -> 177.1
A35: B | B35: Férias e 1/3 Constitucional (ANEXO XII da Instrução Normativa Nº 5, de 26 de Maio De 2017) | C35: 0.121 | D35: =C35*D30 -> 257.1492
A36: TOTAL SUBMÓDULO 2.1 | C36: =TRUNC(SUM(C34:C35),4) -> 0.2043 | D36: =TRUNC(SUM(D34:D35),2) -> 434.24
A38: Submódulo 2.2 - GPS, FGTS e Outras Contribuições | C38: % | D38: VALOR (R$)
A39: A | B39: INSS (SINAPI - Composição de Encargos Sociais - 12/2023) | C39: 0.2 | D39: =($D$30+$D$36)*C39 -> 511.888
A40: B | B40: Salário Educação (SINAPI - Composição de Encargos Sociais - 12/2023) | C40: 0.025 | D40: =($D$30+$D$36)*C40 -> 63.986
A41: C | B41: SAT (SINAPI - Composição de Encargos Sociais - 12/2023) | C41: 0.03 | D41: =($D$30+$D$36)*C41 -> 76.7832
A42: D | B42: SESC ou SESI (SINAPI - Composição de Encargos Sociais - 12/2023) | C42: 0.015 | D42: 38.3916
A43: E | B43: SENAI - SENAC (SINAPI - Composição de Encargos Sociais - 12/2023) | C43: 0.01 | D43: 25.5944
A44: F | B44: SEBRAE (SINAPI - Composição de Encargos Sociais - 12/2023) | C44: 0.006 | D44: 15.35664
A45: G | B45: INCRA (SINAPI - Composição de Encargos Sociais - 12/2023) | C45: 0.002 | D45: 5.11888
A46: H | B46: FGTS (SINAPI - Composição de Encargos Sociais - 12/2023) | C46: 0.08 | D46: 204.7552
A47: I | B47: Contribuição Social (Cláusula 60ª da Convenção Coletiva de Trabalho) | C47: 0.01 | D47: 25.5944
A48: J | B48: Contribuição Negocial (Cláusula 59ª da Convenção Coletiva de Trabalho) | C48: =0.05/12 -> 0.004166666667 | D48: 10.66433333
A49: L | B49: Contribuição Confederativa (Cláusula 61ª da Convenção Coletiva de Trabalho) | C49: 0.01 | D49: 25.5944
A50: TOTAL SUBMÓDULO 2.2 | C50: =SUM(C39:C49) -> 0.3921666667 | D50: =TRUNC(SUM(D39:D49),2) -> 1003.72
A52: Submódulo 2.3 - Benefícios Mensais e Diários | D52: VALOR (R$)
A53: A | B53: Auxílio Transporte ((Tarifa de transporte municipal*2*22 dias) – 6%* Vencimento Básico) | C53: 4 | D53: =(C53*2*22)-(D24*6%) -> 48.488
A54: B | B54: Auxílio Refeição/Alimentação (Cláusula 15ª da Convenção Coletiva de Trabalho) | C54: 239.52 | D54: =C54 -> 239.52
A55: TOTAL SUBMÓDULO 2.3 | D55: =TRUNC(SUM(D53:D54),2) -> 288
A57: QUADRO-RESUMO DO MÓDULO 2 - ENCARGOS, BENEFÍCIOS ANUAIS, MENSAIS E DIÁRIOS
A58: Módulo 2 - Encargos, Benefícios Anuais, Mensais e Diários | D58: VALOR (R$)
A59: 2.1 | B59: 13º Salário, Férias e Adicional de Férias | D59: =D36 -> 434.24
A60: 2.2 | B60: GPS, FGTS e Outras Contribuições | D60: =D50 -> 1003.72
A61: 2.3 | B61: Benefícios Mensais e Diários | D61: =D55 -> 288
A62: TOTAL DO MÓDULO 2 | D62: =TRUNC(SUM(D59:D61),2) -> 1725.96
A64: MÓDULO 3 – PROVISÃO PARA RESCISÃO
A65: 3 | B65: PROVISÃO PARA RESCISÃO | C65: % | D65: VALOR (R$)
A66: A | B66: Aviso prévio indenizado (SINAPI - Composição de Encargos Sociais - 12/2023) | C66: 0.0403 | D66: =$D$30*C66 -> 85.64556
A67: B | B67: Incidência do FGTS sobre o Aviso prévio indenizado | C67: =$C$46*C66 -> 0.003224 | D67: =C67*D30 -> 6.8516448
A68: D | B68: Aviso prévio trabalhado (SINAPI - Composição de Encargos Sociais -12/2023) | C68: 0.0009 | D68: =$D$30*C68 -> 1.91268
A69: E | B69: Incidência do Submódulo 2.2 sobre o Aviso Prévio Trabalhado | C69: =$C$50*C68 -> 0.00035295 | D69: =$D$30*C69 -> 0.75008934
A70: F | B70: Multa do FGTS sobre o Aviso Prévio Indenizado e Aviso Prévio Trabalhado (SINAPI - Composição de Encargos Sociais - 12/2023) | C70: 0.05 | D70: =$D$30*C70 -> 106.26
A71: TOTAL DO MÓDULO 3 | C71: =TRUNC(SUM(C66:C70),4) -> 0.0947 | D71: =TRUNC(SUM(D66:D70),2) -> 201.41
A73: MÓDULO 4 – CUSTO DE REPOSIÇÃO DO PROFISSIONAL AUSENTE
A74: Base de Cálculo do Custo do Substituto (BCCS) = Módulos 1 + 2 + Férias - (V. Transporte e V. Alimentação) + 3 | D74: VALOR (R$)
A75: Módulo 1 - Remuneração | D75: =D18 -> 2125.2
A76: Módulo 2 - Encargos e Benefícios Anuais, Mensais e Diários | D76: =D62 -> 1725.96
A77: Acréscimo das Férias com incidência do 2.2 | D77: =1/12*D30*(1+C50) -> 246.5527167
A78: Desconto do Auxílio-Refeição | D78: =-D54 -> -239.52
A79: Módulo 3 - Provisão para Rescisão | D79: =D71 -> 201.41
A80: TOTAL BCCS | D80: =TRUNC(SUM(D75:D79),2) -> 4059.6
A82: Submódulo 4.1 - Substituto nas Ausências Legais | C82: % | D82: VALOR (R$)
A83: A | B83: Férias (SINAPI - Composição de Encargos Sociais - 12/2023) | C83: 0.1034 | D83: =$D$80*C83 -> 419.76264
A84: B | B84: Auxílio Doença (SINAPI - Composição de Encargos Sociais - a partir de 12/2023) | C84: 0.0064 | D84: 25.98144
A85: C | B85: Acidente de Trabalho (SINAPI - Composição de Encargos Sociais - a partir de 12/2023) | C85: 0.0008 | D85: 3.24768
A86: D | B86: Faltas Legais (SINAPI - Composição de Encargos Sociais - a partir de 12/2023) | C86: =(2/30)/12 -> 0.005555555556 | D86: 22.55333333
A87: E | B87: Férias sobre afastamento maternidade (SINAPI - Composição de Encargos Sociais - a partir de 12/2023) | C87: 0.0003 | D87: 1.21788
A88: F | B88: Licença paternidade (SINAPI - Composição de Encargos Sociais - a partir de 12/2023) | C88: 0.0004 | D88: 1.62384
A89: TOTAL MÓDULO 4 | C89: =TRUNC(SUM(C83:C88),4) -> 0.1168 | D89: =TRUNC(SUM(D83:D88),2) -> 474.38
A91: MÓDULO 5 – INSUMOS DIVERSOS
A92: 5 | B92: INSUMOS DIVERSOS | D92: VALOR (R$)
A93: A | B93: Uniformes | D93: ='Insumos - Módulo 5'!F17 -> 244.315
A94: TOTAL DO MÓDULO 5 | D94: =TRUNC(SUM(D93:D93),2) -> 244.31
A96: MÓDULO 6 – CUSTOS INDIRETOS, TRIBUTOS E LUCRO
A97: 6 | B97: CUSTOS INDIRETOS, TRIBUTOS E LUCRO | C97: % | D97: VALOR (R$)
A98: A | B98: Custos Indiretos | C98: 0.05 | D98: =TRUNC(C98*D115,2) -> 238.56
A99: B | B99: Subtotal 1 (A + Total Custos Diretos) | D99: =D98+D115 -> 5009.82
A100: C | B100: Lucro | C100: 0.1 | D100: =TRUNC(C100*(D98+D115),2) -> 500.98
A101: D | B101: Subtotal 2 (B+C) | D101: =D99+D100 -> 5510.8
A102: E | B102: TRIBUTOS Tributos (estimado com base no Lucro Presumido - a empresa deverá preencher de acordo com o regime tributário a que é submetida) - (E=(D/(1-Tributos%))x(Tributos%) | C102: 0.0865 | D102: =(D101/(1-C102))*C102 -> 521.8217843
A103: E.1 | B103: COFINS | C103: 0.03
A104: E.2 | B104: PIS | C104: 0.0065
A105: E.3 | B105: ISS | C105: 0.05
A106: TOTAL DO MÓDULO 6 (A+C+E) | D106: =D98+D100+D102 -> 1261.361784
A108: QUADRO RESUMO DO CUSTO POR EMPREGADO
A109: Módulo | D109: VALOR (R$)
A110: A | B110: =A22 -> MÓDULO 1 - COMPOSIÇÃO DA REMUNERAÇÃO | D110: =D30 -> 2125.2
A111: B | B111: =A32 -> MÓDULO 2 – ENCARGOS E BENEFÍCIOS ANUAIS, MENSAIS E DIÁRIOS | D111: =D62 -> 1725.96
A112: C | B112: =A64 -> MÓDULO 3 – PROVISÃO PARA RESCISÃO | D112: =D71 -> 201.41
A113: D | B113: =A73 -> MÓDULO 4 – CUSTO DE REPOSIÇÃO DO PROFISSIONAL AUSENTE | D113: =D89 -> 474.38
A114: E | B114: =A91 -> MÓDULO 5 – INSUMOS DIVERSOS | D114: =D94 -> 244.31
A115: Subtotal (A + B + C + D + E) - Custos Diretos | D115: =TRUNC(SUM(D110:D114),2) -> 4771.26
A116: F | B116: =A96 -> MÓDULO 6 – CUSTOS INDIRETOS, TRIBUTOS E LUCRO | D116: =D106 -> 1261.361784
A117: PREÇO TOTAL POR EMPREGADO / MÊS (CUSTO FIXO) | D117: =D116+D115 -> 6032.621784

Sheet Servente - Módulos 1 a 6
A1: MÓDULOS 1 A 6 (CUSTOS FIXOS)
A2: Planilha de Custos e Formação de Preços
A3: =D8 -> Servente
A4: Discriminação dos Serviços
A5: Data de apresentação da proposta | D5: 2025-05-16
A6: Município | D6: Teresina - PI
A7: Ano do Acordo, Convenção ou Dissídio Coletivo | D7: MR022354/2025
A8: Tipo de Serviço | D8: Servente
A9: Unidade de Medida | D9: Posto
A10: Quantidade máxima passível de contratação em função da unidade de medida | D10: 2
A11: Nº de meses de execução contratual | D11: 12
A12: Regime Tributário da Empresa
A13: Se Optante pelo Simples Nacional, preencher o faturamento acumulado dos últimos 12 meses
A15: Dados complementares para composição dos custos referente à mão-de-obra
A16: 1 | B16: Tipo de Serviço | D16: =D8 -> Servente
A17: 2 | B17: Classificação Brasileira de Ocupações (CBO) | D17: 7170-20
A18: 3 | B18: Salário Nominativo da Categoria Profissional (Cláusula 2 e 3ª da Convenção Coletiva de Trabalho) | D18: 1533.5
A19: 4 | B19: Categoria profissional (vinculada à execução contratual) | D19: SITRICOM
A20: 5 | B20: Data base da categoria (dia/mês/ano) | D20: 2024-11-01
A22: MÓDULO 1 - COMPOSIÇÃO DA REMUNERAÇÃO
A23: 1 | B23: COMPOSIÇÃO DA REMUNERAÇÃO | C23: % | D23: VALOR (R$)
A24: A | B24: Salário Base (Cláusula 2 e 3ª da Convenção Coletiva de Trabalho) | D24: =D18 -> 1533.5
A25: B | B25: Adicional Periculosidade (Cláusulas 12ª da Convenção Coletiva de Trabalho) | D25: 0
A26: C | B26: Adicional Insalubridade (Cláusulas 12ª da Convenção Coletiva de Trabalho) | D26: 0
A27: D | B27: Adicional Noturno (Cláusulas 11ª da Convenção Coletiva de Trabalho) | D27: 0
A28: E | B28: Adicional de Hora Noturna Reduzida (Cláusulas 11ª da Convenção Coletiva de Trabalho) | D28: 0
A29: F | B29: Adicional de Hora Extra no Feriado Trabalhado (Cláusulas 10ª da Convenção Coletiva de Trabalho) | D29: 0
A30: TOTAL DO MÓDULO 1 | D30: =TRUNC(SUM(D24:D29),2) -> 1533.5
A32: MÓDULO 2 – ENCARGOS E BENEFÍCIOS ANUAIS, MENSAIS E DIÁRIOS
A33: Submódulo 2.1 - 13º Salário, Férias e Adicional de Férias | C33: % | D33: VALOR (R$)
A34: A | B34: 13º (décimo terceiro) Salário (SINAPI - Composição de Encargos Sociais - 12/2023) | C34: =1/12 -> 0.08333333333 | D34: =$D$30*C34 -> 127.7916667
A35: B | B35: Férias e 1/3 Constitucional (ANEXO XII da Instrução Normativa Nº 5, de 26 de Maio De 2017) | C35: 0.121 | D35: =C35*D30 -> 185.5535
A36: TOTAL SUBMÓDULO 2.1 | C36: =TRUNC(SUM(C34:C35),4) -> 0.2043 | D36: =TRUNC(SUM(D34:D35),2) -> 313.34
A38: Submódulo 2.2 - GPS, FGTS e Outras Contribuições | C38: % | D38: VALOR (R$)
A39: A | B39: INSS (SINAPI - Composição de Encargos Sociais - 12/2023) | C39: 0.2 | D39: =($D$30+$D$36)*C39 -> 369.368
A40: B | B40: Salário Educação (SINAPI - Composição de Encargos Sociais - 12/2023) | C40: 0.025 | D40: =($D$30+$D$36)*C40 -> 46.171
A41: C | B41: SAT (SINAPI - Composição de Encargos Sociais - 12/2023) | C41: 0.03 | D41: =($D$30+$D$36)*C41 -> 55.4052
A42: D | B42: SESC ou SESI (SINAPI - Composição de Encargos Sociais - 12/2023) | C42: 0.015 | D42: 27.7026
A43: E | B43: SENAI - SENAC (SINAPI - Composição de Encargos Sociais - 12/2023) | C43: 0.01 | D43: 18.4684
A44: F | B44: SEBRAE (SINAPI - Composição de Encargos Sociais - 12/2023) | C44: 0.006 | D44: 11.08104
A45: G | B45: INCRA (SINAPI - Composição de Encargos Sociais - 12/2023) | C45: 0.002 | D45: 3.69368
A46: H | B46: FGTS (SINAPI - Composição de Encargos Sociais - 12/2023) | C46: 0.08 | D46: 147.7472
A47: I | B47: Contribuição Social (Cláusula 60ª da Convenção Coletiva de Trabalho) | C47: 0.01 | D47: 18.4684
A48: J | B48: Contribuição Negocial (Cláusula 59ª da Convenção Coletiva de Trabalho) | C48: =0.05/12 -> 0.004166666667 | D48: 7.695166667
A49: L | B49: Contribuição Confederativa (Cláusula 61ª da Convenção Coletiva de Trabalho) | C49: 0.01 | D49: 18.4684
A50: TOTAL SUBMÓDULO 2.2 | C50: =SUM(C39:C49) -> 0.3921666667 | D50: =TRUNC(SUM(D39:D49),2) -> 724.26
A52: Submódulo 2.3 - Benefícios Mensais e Diários | D52: VALOR (R$)
A53: A | B53: Auxílio Transporte ((Tarifa de transporte municipal*2*22 dias) – 6%* Vencimento Básico) | C53: 4 | D53: =(C53*2*22)-(D24*6%) -> 83.99
A54: B | B54: Auxílio Refeição/Alimentação (Cláusula 15ª da Convenção Coletiva de Trabalho) | C54: 239.52 | D54: =C54 -> 239.52
A55: TOTAL SUBMÓDULO 2.3 | D55: =TRUNC(SUM(D53:D54),2) -> 323.51
A57: QUADRO-RESUMO DO MÓDULO 2 - ENCARGOS, BENEFÍCIOS ANUAIS, MENSAIS E DIÁRIOS
A58: Módulo 2 - Encargos, Benefícios Anuais, Mensais e Diários | D58: VALOR (R$)
A59: 2.1 | B59: 13º Salário, Férias e Adicional de Férias | D59: =D36 -> 313.34
A60: 2.2 | B60: GPS, FGTS e Outras Contribuições | D60: =D50 -> 724.26
A61: 2.3 | B61: Benefícios Mensais e Diários | D61: =D55 -> 323.51
A62: TOTAL DO MÓDULO 2 | D62: =TRUNC(SUM(D59:D61),2) -> 1361.11
A64: MÓDULO 3 – PROVISÃO PARA RESCISÃO
A65: 3 | B65: PROVISÃO PARA RESCISÃO | C65: % | D65: VALOR (R$)
A66: A | B66: Aviso prévio indenizado (SINAPI - Composição de Encargos Sociais - 12/2023) | C66: 0.0403 | D66: =$D$30*C66 -> 61.80005
A67: B | B67: Incidência do FGTS sobre o Aviso prévio indenizado | C67: =$C$46*C66 -> 0.003224 | D67: =C67*D30 -> 4.944004
A68: D | B68: Aviso prévio trabalhado (SINAPI - Composição de Encargos Sociais -12/2023) | C68: 0.0009 | D68: =$D$30*C68 -> 1.38015
A69: E | B69: Incidência do Submódulo 2.2 sobre o Aviso Prévio Trabalhado | C69: =$C$50*C68 -> 0.00035295 | D69: =$D$30*C69 -> 0.541248825
A70: F | B70: Multa do FGTS sobre o Aviso Prévio Indenizado e Aviso Prévio Trabalhado (SINAPI - Composição de Encargos Sociais - 12/2023) | C70: 0.05 | D70: =$D$30*C70 -> 76.675
A71: TOTAL DO MÓDULO 3 | C71: =TRUNC(SUM(C66:C70),4) -> 0.0947 | D71: =TRUNC(SUM(D66:D70),2) -> 145.34
A73: MÓDULO 4 – CUSTO DE REPOSIÇÃO DO PROFISSIONAL AUSENTE
A74: Base de Cálculo do Custo do Substituto (BCCS) = Módulos 1 + 2 + Férias - (V. Transporte e V. Alimentação) + 3 | D74: VALOR (R$)
A75: Módulo 1 - Remuneração | D75: =D18 -> 1533.5
A76: Módulo 2 - Encargos e Benefícios Anuais, Mensais e Diários | D76: =D62 -> 1361.11
A77: Acréscimo das Férias com incidência do 2.2 | D77: =1/12*D30*(1+C50) -> 177.9072986
A78: Desconto do Auxílio-Refeição | D78: =-D54 -> -239.52
A79: Módulo 3 - Provisão para Rescisão | D79: =D71 -> 145.34
A80: TOTAL BCCS | D80: =TRUNC(SUM(D75:D79),2) -> 2978.33
A82: Submódulo 4.1 - Substituto nas Ausências Legais | C82: % | D82: VALOR (R$)
A83: A | B83: Férias (SINAPI - Composição de Encargos Sociais - 12/2023) | C83: 0.1034 | D83: =$D$80*C83 -> 307.959322
A84: B | B84: Auxílio Doença (SINAPI - Composição de Encargos Sociais - a partir de 12/2023) | C84: 0.0064 | D84: 19.061312
A85: C | B85: Acidente de Trabalho (SINAPI - Composição de Encargos Sociais - a partir de 12/2023) | C85: 0.0008 | D85: 2.382664
A86: D | B86: Faltas Legais (SINAPI - Composição de Encargos Sociais - a partir de 12/2023) | C86: =(2/30)/12 -> 0.005555555556 | D86: 16.54627778
A87: E | B87: Férias sobre afastamento maternidade (SINAPI - Composição de Encargos Sociais - a partir de 12/2023) | C87: 0.0003 | D87: 0.893499
A88: F | B88: Licença paternidade (SINAPI - Composição de Encargos Sociais - a partir de 12/2023) | C88: 0.0004 | D88: 1.191332
A89: TOTAL MÓDULO 4 | C89: =TRUNC(SUM(C83:C88),4) -> 0.1168 | D89: =TRUNC(SUM(D83:D88),2) -> 348.03
A91: MÓDULO 5 – INSUMOS DIVERSOS
A92: 5 | B92: INSUMOS DIVERSOS | D92: VALOR (R$)
A93: A | B93: Uniformes | D93: ='Insumos - Módulo 5'!F17 -> 244.315
A94: TOTAL DO MÓDULO 5 | D94: =TRUNC(SUM(D93:D93),2) -> 244.31
A96: MÓDULO 6 – CUSTOS INDIRETOS, TRIBUTOS E LUCRO
A97: 6 | B97: CUSTOS INDIRETOS, TRIBUTOS E LUCRO | C97: % | D97: VALOR (R$)
A98: A | B98: Custos Indiretos | C98: 0.05 | D98: =TRUNC(C98*D115,2) -> 181.61
A99: B | B99: Subtotal 1 (A + Total Custos Diretos) | D99: =D98+D115 -> 3813.9
A100: C | B100: Lucro | C100: 0.1 | D100: =TRUNC(C100*(D98+D115),2) -> 381.39
A101: D | B101: Subtotal 2 (B+C) | D101: =D99+D100 -> 4195.29
A102: E | B102: TRIBUTOS Tributos (estimado com base no Lucro Presumido - a empresa deverá preencher de acordo com o regime tributário a que é submetida) - (E=(D/(1-Tributos%))x(Tributos%) | C102: 0.0865 | D102: =(D101/(1-C102))*C102 -> 397.255156
A103: E.1 | B103: COFINS | C103: 0.03
A104: E.2 | B104: PIS | C104: 0.0065
A105: E.3 | B105: ISS | C105: 0.05
A106: TOTAL DO MÓDULO 6 (A+C+E) | D106: =D98+D100+D102 -> 960.255156
A108: QUADRO RESUMO DO CUSTO POR EMPREGADO
A109: Módulo | D109: VALOR (R$)
A110: A | B110: =A22 -> MÓDULO 1 - COMPOSIÇÃO DA REMUNERAÇÃO | D110: =D30 -> 1533.5
A111: B | B111: =A32 -> MÓDULO 2 – ENCARGOS E BENEFÍCIOS ANUAIS, MENSAIS E DIÁRIOS | D111: =D62 -> 1361.11
A112: C | B112: =A64 -> MÓDULO 3 – PROVISÃO PARA RESCISÃO | D112: =D71 -> 145.34
A113: D | B113: =A73 -> MÓDULO 4 – CUSTO DE REPOSIÇÃO DO PROFISSIONAL AUSENTE | D113: =D89 -> 348.03
A114: E | B114: =A91 -> MÓDULO 5 – INSUMOS DIVERSOS | D114: =D94 -> 244.31
A115: Subtotal (A + B + C + D + E) - Custos Diretos | D115: =TRUNC(SUM(D110:D114),2) -> 3632.29
A116: F | B116: =A96 -> MÓDULO 6 – CUSTOS INDIRETOS, TRIBUTOS E LUCRO | D116: =D106 -> 960.255156
A117: PREÇO TOTAL POR EMPREGADO / MÊS (CUSTO FIXO) | D117: =D116+D115 -> 4592.545156

Sheet Compressor - Módulos 1 a 6
A1: MÓDULOS 1 A 6 (CUSTOS FIXOS)
A2: Planilha de Custos e Formação de Preços
A3: =D8 -> Compressorista
A4: Discriminação dos Serviços
A5: Data de apresentação da proposta | D5: 2025-05-16
A6: Município | D6: Teresina - PI
A7: Ano do Acordo, Convenção ou Dissídio Coletivo | D7: MR022354/2025
A8: Tipo de Serviço | D8: Compressorista
A9: Unidade de Medida | D9: Posto
A10: Quantidade máxima passível de contratação em função da unidade de medida | D10: 1
A11: Nº de meses de execução contratual | D11: 12
A12: Regime Tributário da Empresa
A13: Se Optante pelo Simples Nacional, preencher o faturamento acumulado dos últimos 12 meses
A15: Dados complementares para composição dos custos referente à mão-de-obra
A16: 1 | B16: Tipo de Serviço | D16: =D8 -> Compressorista
A17: 2 | B17: Classificação Brasileira de Ocupações (CBO) | D17: 8621-30
A18: 3 | B18: Salário Nominativo da Categoria Profissional (Cláusula 2 e 3ª da Convenção Coletiva de Trabalho) | D18: 1669.8
A19: 4 | B19: Categoria profissional (vinculada à execução contratual) | D19: SITRICOM
A20: 5 | B20: Data base da categoria (dia/mês/ano) | D20: 2024-11-01
A22: MÓDULO 1 - COMPOSIÇÃO DA REMUNERAÇÃO
A23: 1 | B23: COMPOSIÇÃO DA REMUNERAÇÃO | C23: % | D23: VALOR (R$)
A24: A | B24: Salário Base (Cláusula 2 e 3ª da Convenção Coletiva de Trabalho) | D24: =D18 -> 1669.8
A25: B | B25: Adicional Periculosidade (Cláusulas 12ª da Convenção Coletiva de Trabalho) | D25: 0
A26: C | B26: Adicional Insalubridade (Cláusulas 12ª da Convenção Coletiva de Trabalho) | D26: 0
A27: D | B27: Adicional Noturno (Cláusulas 11ª da Convenção Coletiva de Trabalho) | D27: 0
A28: E | B28: Adicional de Hora Noturna Reduzida (Cláusulas 11ª da Convenção Coletiva de Trabalho) | D28: 0
A29: F | B29: Adicional de Hora Extra no Feriado Trabalhado (Cláusulas 10ª da Convenção Coletiva de Trabalho) | D29: 0
A30: TOTAL DO MÓDULO 1 | D30: =TRUNC(SUM(D24:D29),2) -> 1669.8
A32: MÓDULO 2 – ENCARGOS E BENEFÍCIOS ANUAIS, MENSAIS E DIÁRIOS
A33: Submódulo 2.1 - 13º Salário, Férias e Adicional de Férias | C33: % | D33: VALOR (R$)
A34: A | B34: 13º (décimo terceiro) Salário (SINAPI - Composição de Encargos Sociais - 12/2023) | C34: =1/12 -> 0.08333333333 | D34: =$D$30*C34 -> 139.15
A35: B | B35: Férias e 1/3 Constitucional (ANEXO XII da Instrução Normativa Nº 5, de 26 de Maio De 2017) | C35: 0.121 | D35: =C35*D30 -> 202.0458
A36: TOTAL SUBMÓDULO 2.1 | C36: =TRUNC(SUM(C34:C35),4) -> 0.2043 | D36: =TRUNC(SUM(D34:D35),2) -> 341.19
A38: Submódulo 2.2 - GPS, FGTS e Outras Contribuições | C38: % | D38: VALOR (R$)
A39: A | B39: INSS (SINAPI - Composição de Encargos Sociais - 12/2023) | C39: 0.2 | D39: =($D$30+$D$36)*C39 -> 402.198
A40: B | B40: Salário Educação (SINAPI - Composição de Encargos Sociais - 12/2023) | C40: 0.025 | D40: =($D$30+$D$36)*C40 -> 50.27475
A41: C | B41: SAT (SINAPI - Composição de Encargos Sociais - 12/2023) | C41: 0.03 | D41: =($D$30+$D$36)*C41 -> 60.3297
A42: D | B42: SESC ou SESI (SINAPI - Composição de Encargos Sociais - 12/2023) | C42: 0.015 | D42: 30.16485
A43: E | B43: SENAI - SENAC (SINAPI - Composição de Encargos Sociais - 12/2023) | C43: 0.01 | D43: 20.1099
A44: F | B44: SEBRAE (SINAPI - Composição de Encargos Sociais - 12/2023) | C44: 0.006 | D44: 12.06594
A45: G | B45: INCRA (SINAPI - Composição de Encargos Sociais - 12/2023) | C45: 0.002 | D45: 4.02198
A46: H | B46: FGTS (SINAPI - Composição de Encargos Sociais - 12/2023) | C46: 0.08 | D46: 160.8792
A47: I | B47: Contribuição Social (Cláusula 60ª da Convenção Coletiva de Trabalho) | C47: 0.01 | D47: 20.1099
A48: J | B48: Contribuição Negocial (Cláusula 59ª da Convenção Coletiva de Trabalho) | C48: =0.05/12 -> 0.004166666667 | D48: 8.379125
A49: L | B49: Contribuição Confederativa (Cláusula 61ª da Convenção Coletiva de Trabalho) | C49: 0.01 | D49: 20.1099
A50: TOTAL SUBMÓDULO 2.2 | C50: =SUM(C39:C49) -> 0.3921666667 | D50: =TRUNC(SUM(D39:D49),2) -> 788.64
A52: Submódulo 2.3 - Benefícios Mensais e Diários | D52: VALOR (R$)
A53: A | B53: Auxílio Transporte ((Tarifa de transporte municipal*2*22 dias) – 6%* Vencimento Básico) | C53: 4 | D53: =(C53*2*22)-(D24*6%) -> 75.812
A54: B | B54: Auxílio Refeição/Alimentação (Cláusula 15ª da Convenção Coletiva de Trabalho) | C54: 239.52 | D54: =C54 -> 239.52
A55: TOTAL SUBMÓDULO 2.3 | D55: =TRUNC(SUM(D53:D54),2) -> 315.33
A57: QUADRO-RESUMO DO MÓDULO 2 - ENCARGOS, BENEFÍCIOS ANUAIS, MENSAIS E DIÁRIOS
A58: Módulo 2 - Encargos, Benefícios Anuais, Mensais e Diários | D58: VALOR (R$)
A59: 2.1 | B59: 13º Salário, Férias e Adicional de Férias | D59: =D36 -> 341.19
A60: 2.2 | B60: GPS, FGTS e Outras Contribuições | D60: =D50 -> 788.64
A61: 2.3 | B61: Benefícios Mensais e Diários | D61: =D55 -> 315.33
A62: TOTAL DO MÓDULO 2 | D62: =TRUNC(SUM(D59:D61),2) -> 1445.16
A64: MÓDULO 3 – PROVISÃO PARA RESCISÃO
A65: 3 | B65: PROVISÃO PARA RESCISÃO | C65: % | D65: VALOR (R$)
A66: A | B66: Aviso prévio indenizado (SINAPI - Composição de Encargos Sociais - 12/2023) | C66: 0.0403 | D66: =$D$30*C66 -> 67.29294
A67: B | B67: Incidência do FGTS sobre o Aviso prévio indenizado | C67: =$C$46*C66 -> 0.003224 | D67: =C67*D30 -> 5.3834352
A68: D | B68: Aviso prévio trabalhado (SINAPI - Composição de Encargos Sociais -12/2023) | C68: 0.0009 | D68: =$D$30*C68 -> 1.50282
A69: E | B69: Incidência do Submódulo 2.2 sobre o Aviso Prévio Trabalhado | C69: =$C$50*C68 -> 0.00035295 | D69: =$D$30*C69 -> 0.58935591
A70: F | B70: Multa do FGTS sobre o Aviso Prévio Indenizado e Aviso Prévio Trabalhado (SINAPI - Composição de Encargos Sociais - 12/2023) | C70: 0.05 | D70: =$D$30*C70 -> 83.49
A71: TOTAL DO MÓDULO 3 | C71: =TRUNC(SUM(C66:C70),4) -> 0.0947 | D71: =TRUNC(SUM(D66:D70),2) -> 158.25
A73: MÓDULO 4 – CUSTO DE REPOSIÇÃO DO PROFISSIONAL AUSENTE
A74: Base de Cálculo do Custo do Substituto (BCCS) = Módulos 1 + 2 + Férias - (V. Transporte e V. Alimentação) + 3 | D74: VALOR (R$)
A75: Módulo 1 - Remuneração | D75: =D18 -> 1669.8
A76: Módulo 2 - Encargos e Benefícios Anuais, Mensais e Diários | D76: =D62 -> 1445.16
A77: Acréscimo das Férias com incidência do 2.2 | D77: =1/12*D30*(1+C50) -> 193.7199917
A78: Desconto do Auxílio-Refeição | D78: =-D54 -> -239.52
A79: Módulo 3 - Provisão para Rescisão | D79: =D71 -> 158.25
A80: TOTAL BCCS | D80: =TRUNC(SUM(D75:D79),2) -> 3227.4
A82: Submódulo 4.1 - Substituto nas Ausências Legais | C82: % | D82: VALOR (R$)
A83: A | B83: Férias (SINAPI - Composição de Encargos Sociais - 12/2023) | C83: 0.1034 | D83: =$D$80*C83 -> 333.71316
A84: B | B84: Auxílio Doença (SINAPI - Composição de Encargos Sociais - a partir de 12/2023) | C84: 0.0064 | D84: 20.65536
A85: C | B85: Acidente de Trabalho (SINAPI - Composição de Encargos Sociais - a partir de 12/2023) | C85: 0.0008 | D85: 2.58192
A86: D | B86: Faltas Legais (SINAPI - Composição de Encargos Sociais - a partir de 12/2023) | C86: =(2/30)/12 -> 0.005555555556 | D86: 17.93
A87: E | B87: Férias sobre afastamento maternidade (SINAPI - Composição de Encargos Sociais - a partir de 12/2023) | C87: 0.0003 | D87: 0.96822
A88: F | B88: Licença paternidade (SINAPI - Composição de Encargos Sociais - a partir de 12/2023) | C88: 0.0004 | D88: 1.29096
A89: TOTAL MÓDULO 4 | C89: =TRUNC(SUM(C83:C88),4) -> 0.1168 | D89: =TRUNC(SUM(D83:D88),2) -> 377.13
A91: MÓDULO 5 – INSUMOS DIVERSOS
A92: 5 | B92: INSUMOS DIVERSOS | D92: VALOR (R$)
A93: A | B93: Uniformes | D93: ='Insumos - Módulo 5'!F17 -> 244.315
A94: TOTAL DO MÓDULO 5 | D94: =TRUNC(SUM(D93:D93),2) -> 244.31
A96: MÓDULO 6 – CUSTOS INDIRETOS, TRIBUTOS E LUCRO
A97: 6 | B97: CUSTOS INDIRETOS, TRIBUTOS E LUCRO | C97: % | D97: VALOR (R$)
A98: A | B98: Custos Indiretos | C98: 0.05 | D98: =TRUNC(C98*D115,2) -> 194.73
A99: B | B99: Subtotal 1 (A + Total Custos Diretos) | D99: =D98+D115 -> 4089.38
A100: C | B100: Lucro | C100: 0.1 | D100: =TRUNC(C100*(D98+D115),2) -> 408.93
A101: D | B101: Subtotal 2 (B+C) | D101: =D99+D100 -> 4498.31
A102: E | B102: TRIBUTOS Tributos (estimado com base no Lucro Presumido - a empresa deverá preencher de acordo com o regime tributário a que é submetida) - (E=(D/(1-Tributos%))x(Tributos%) | C102: 0.0865 | D102: =(D101/(1-C102))*C102 -> 425.948347
A103: E.1 | B103: COFINS | C103: 0.03
A104: E.2 | B104: PIS | C104: 0.0065
A105: E.3 | B105: ISS | C105: 0.05
A106: TOTAL DO MÓDULO 6 (A+C+E) | D106: =D98+D100+D102 -> 1029.608347
A108: QUADRO RESUMO DO CUSTO POR EMPREGADO
A109: Módulo | D109: VALOR (R$)
A110: A | B110: =A22 -> MÓDULO 1 - COMPOSIÇÃO DA REMUNERAÇÃO | D110: =D30 -> 1669.8
A111: B | B111: =A32 -> MÓDULO 2 – ENCARGOS E BENEFÍCIOS ANUAIS, MENSAIS E DIÁRIOS | D111: =D62 -> 1445.16
A112: C | B112: =A64 -> MÓDULO 3 – PROVISÃO PARA RESCISÃO | D112: =D71 -> 158.25
A113: D | B113: =A73 -> MÓDULO 4 – CUSTO DE REPOSIÇÃO DO PROFISSIONAL AUSENTE | D113: =D89 -> 377.13
A114: E | B114: =A91 -> MÓDULO 5 – INSUMOS DIVERSOS | D114: =D94 -> 244.31
A115: Subtotal (A + B + C + D + E) - Custos Diretos | D115: =TRUNC(SUM(D110:D114),2) -> 3894.65
A116: F | B116: =A96 -> MÓDULO 6 – CUSTOS INDIRETOS, TRIBUTOS E LUCRO | D116: =D106 -> 1029.608347
A117: PREÇO TOTAL POR EMPREGADO / MÊS (CUSTO FIXO) | D117: =D116+D115 -> 4924.258347

Sheet Munck - Módulos 1 a 6
A1: MÓDULOS 1 A 6 (CUSTOS FIXOS)
A2: Planilha de Custos e Formação de Preços
A3: =D8 -> Motorista de Caminhão Munck
A4: Discriminação dos Serviços
A5: Data de apresentação da proposta | D5: 2025-05-16
A6: Município | D6: Teresina - PI
A7: Ano do Acordo, Convenção ou Dissídio Coletivo | D7: MR022354/2025
A8: Tipo de Serviço | D8: Motorista de Caminhão Munck
A9: Unidade de Medida | D9: Posto
A10: Quantidade máxima passível de contratação em função da unidade de medida | D10: 1
A11: Nº de meses de execução contratual | D11: 12
A12: Regime Tributário da Empresa
A13: Se Optante pelo Simples Nacional, preencher o faturamento acumulado dos últimos 12 meses
A15: Dados complementares para composição dos custos referente à mão-de-obra
A16: 1 | B16: Tipo de Serviço | D16: =D8 -> Motorista de Caminhão Munck
A17: 2 | B17: Classificação Brasileira de Ocupações (CBO) | D17: 7825-10
A18: 3 | B18: Salário Nominativo da Categoria Profissional (Cláusula 2 e 3ª da Convenção Coletiva de Trabalho) | D18: 2226.4
A19: 4 | B19: Categoria profissional (vinculada à execução contratual) | D19: SITRICOM
A20: 5 | B20: Data base da categoria (dia/mês/ano) | D20: 2024-11-01
A22: MÓDULO 1 - COMPOSIÇÃO DA REMUNERAÇÃO
A23: 1 | B23: COMPOSIÇÃO DA REMUNERAÇÃO | C23: % | D23: VALOR (R$)
A24: A | B24: Salário Base (Cláusula 2 e 3ª da Convenção Coletiva de Trabalho) | D24: =D18 -> 2226.4
A25: B | B25: Adicional Periculosidade (Cláusulas 12ª da Convenção Coletiva de Trabalho) | D25: 0
A26: C | B26: Adicional Insalubridade (Cláusulas 12ª da Convenção Coletiva de Trabalho) | D26: 0
A27: D | B27: Adicional Noturno (Cláusulas 11ª da Convenção Coletiva de Trabalho) | D27: 0
A28: E | B28: Adicional de Hora Noturna Reduzida (Cláusulas 11ª da Convenção Coletiva de Trabalho) | D28: 0
A29: F | B29: Adicional de Hora Extra no Feriado Trabalhado (Cláusulas 10ª da Convenção Coletiva de Trabalho) | D29: 0
A30: TOTAL DO MÓDULO 1 | D30: =TRUNC(SUM(D24:D29),2) -> 2226.4
A32: MÓDULO 2 – ENCARGOS E BENEFÍCIOS ANUAIS, MENSAIS E DIÁRIOS
A33: Submódulo 2.1 - 13º Salário, Férias e Adicional de Férias | C33: % | D33: VALOR (R$)
A34: A | B34: 13º (décimo terceiro) Salário (SINAPI - Composição de Encargos Sociais - 12/2023) | C34: =1/12 -> 0.08333333333 | D34: =$D$30*C34 -> 185.5333333
A35: B | B35: Férias e 1/3 Constitucional (ANEXO XII da Instrução Normativa Nº 5, de 26 de Maio De 2017) | C35: 0.121 | D35: =C35*D30 -> 269.3944
A36: TOTAL SUBMÓDULO 2.1 | C36: =TRUNC(SUM(C34:C35),4) -> 0.2043 | D36: =TRUNC(SUM(D34:D35),2) -> 454.92
A38: Submódulo 2.2 - GPS, FGTS e Outras Contribuições | C38: % | D38: VALOR (R$)
A39: A | B39: INSS (SINAPI - Composição de Encargos Sociais - 12/2023) | C39: 0.2 | D39: =($D$30+$D$36)*C39 -> 536.264
A40: B | B40: Salário Educação (SINAPI - Composição de Encargos Sociais - 12/2023) | C40: 0.025 | D40: =($D$30+$D$36)*C40 -> 67.033
A41: C | B41: SAT (SINAPI - Composição de Encargos Sociais - 12/2023) | C41: 0.03 | D41: =($D$30+$D$36)*C41 -> 80.4396
A42: D | B42: SESC ou SESI (SINAPI - Composição de Encargos Sociais - 12/2023) | C42: 0.015 | D42: 40.2198
A43: E | B43: SENAI - SENAC (SINAPI - Composição de Encargos Sociais - 12/2023) | C43: 0.01 | D43: 26.8132
A44: F | B44: SEBRAE (SINAPI - Composição de Encargos Sociais - 12/2023) | C44: 0.006 | D44: 16.08792
A45: G | B45: INCRA (SINAPI - Composição de Encargos Sociais - 12/2023) | C45: 0.002 | D45: 5.36264
A46: H | B46: FGTS (SINAPI - Composição de Encargos Sociais - 12/2023) | C46: 0.08 | D46: 214.5056
A47: I | B47: Contribuição Social (Cláusula 60ª da Convenção Coletiva de Trabalho) | C47: 0.01 | D47: 26.8132
A48: J | B48: Contribuição Negocial (Cláusula 59ª da Convenção Coletiva de Trabalho) | C48: =0.05/12 -> 0.004166666667 | D48: 11.17216667
A49: L | B49: Contribuição Confederativa (Cláusula 61ª da Convenção Coletiva de Trabalho) | C49: 0.01 | D49: 26.8132
A50: TOTAL SUBMÓDULO 2.2 | C50: =SUM(C39:C49) -> 0.3921666667 | D50: =TRUNC(SUM(D39:D49),2) -> 1051.52
A52: Submódulo 2.3 - Benefícios Mensais e Diários | D52: VALOR (R$)
A53: A | B53: Auxílio Transporte ((Tarifa de transporte municipal*2*22 dias) – 6%* Vencimento Básico) | C53: 4 | D53: =(C53*2*22)-(D24*6%) -> 42.416
A54: B | B54: Auxílio Refeição/Alimentação (Cláusula 15ª da Convenção Coletiva de Trabalho) | C54: 239.52 | D54: =C54 -> 239.52
A55: TOTAL SUBMÓDULO 2.3 | D55: =TRUNC(SUM(D53:D54),2) -> 281.93
A57: QUADRO-RESUMO DO MÓDULO 2 - ENCARGOS, BENEFÍCIOS ANUAIS, MENSAIS E DIÁRIOS
A58: Módulo 2 - Encargos, Benefícios Anuais, Mensais e Diários | D58: VALOR (R$)
A59: 2.1 | B59: 13º Salário, Férias e Adicional de Férias | D59: =D36 -> 454.92
A60: 2.2 | B60: GPS, FGTS e Outras Contribuições | D60: =D50 -> 1051.52
A61: 2.3 | B61: Benefícios Mensais e Diários | D61: =D55 -> 281.93
A62: TOTAL DO MÓDULO 2 | D62: =TRUNC(SUM(D59:D61),2) -> 1788.37
A64: MÓDULO 3 – PROVISÃO PARA RESCISÃO
A65: 3 | B65: PROVISÃO PARA RESCISÃO | C65: % | D65: VALOR (R$)
A66: A | B66: Aviso prévio indenizado (SINAPI - Composição de Encargos Sociais - 12/2023) | C66: 0.0403 | D66: =$D$30*C66 -> 89.72392
A67: B | B67: Incidência do FGTS sobre o Aviso prévio indenizado | C67: =$C$46*C66 -> 0.003224 | D67: =C67*D30 -> 7.1779136
A68: D | B68: Aviso prévio trabalhado (SINAPI - Composição de Encargos Sociais -12/2023) | C68: 0.0009 | D68: =$D$30*C68 -> 2.00376
A69: E | B69: Incidência do Submódulo 2.2 sobre o Aviso Prévio Trabalhado | C69: =$C$50*C68 -> 0.00035295 | D69: =$D$30*C69 -> 0.78580788
A70: F | B70: Multa do FGTS sobre o Aviso Prévio Indenizado e Aviso Prévio Trabalhado (SINAPI - Composição de Encargos Sociais - 12/2023) | C70: 0.05 | D70: =$D$30*C70 -> 111.32
A71: TOTAL DO MÓDULO 3 | C71: =TRUNC(SUM(C66:C70),4) -> 0.0947 | D71: =TRUNC(SUM(D66:D70),2) -> 211.01
A73: MÓDULO 4 – CUSTO DE REPOSIÇÃO DO PROFISSIONAL AUSENTE
A74: Base de Cálculo do Custo do Substituto (BCCS) = Módulos 1 + 2 + Férias - (V. Transporte e V. Alimentação) + 3 | D74: VALOR (R$)
A75: Módulo 1 - Remuneração | D75: =D18 -> 2226.4
A76: Módulo 2 - Encargos e Benefícios Anuais, Mensais e Diários | D76: =D62 -> 1788.37
A77: Acréscimo das Férias com incidência do 2.2 | D77: =1/12*D30*(1+C50) -> 258.2933222
A78: Desconto do Auxílio-Refeição | D78: =-D54 -> -239.52
A79: Módulo 3 - Provisão para Rescisão | D79: =D71 -> 211.01
A80: TOTAL BCCS | D80: =TRUNC(SUM(D75:D79),2) -> 4244.55
A82: Submódulo 4.1 - Substituto nas Ausências Legais | C82: % | D82: VALOR (R$)
A83: A | B83: Férias (SINAPI - Composição de Encargos Sociais - 12/2023) | C83: 0.1034 | D83: =$D$80*C83 -> 438.88647
A84: B | B84: Auxílio Doença (SINAPI - Composição de Encargos Sociais - a partir de 12/2023) | C84: 0.0064 | D84: 27.16512
A85: C | B85: Acidente de Trabalho (SINAPI - Composição de Encargos Sociais - a partir de 12/2023) | C85: 0.0008 | D85: 3.39564
A86: D | B86: Faltas Legais (SINAPI - Composição de Encargos Sociais - a partir de 12/2023) | C86: =(2/30)/12 -> 0.005555555556 | D86: 23.58083333
A87: E | B87: Férias sobre afastamento maternidade (SINAPI - Composição de Encargos Sociais - a partir de 12/2023) | C87: 0.0003 | D87: 1.273365
A88: F | B88: Licença paternidade (SINAPI - Composição de Encargos Sociais - a partir de 12/2023) | C88: 0.0004 | D88: 1.69782
A89: TOTAL MÓDULO 4 | C89: =TRUNC(SUM(C83:C88),4) -> 0.1168 | D89: =TRUNC(SUM(D83:D88),2) -> 495.99
A91: MÓDULO 5 – INSUMOS DIVERSOS
A92: 5 | B92: INSUMOS DIVERSOS | D92: VALOR (R$)
A93: A | B93: Uniformes | D93: ='Insumos - Módulo 5'!F17 -> 244.315
A94: B | B94: Certificado Digital | D94: ='Insumos - Módulo 5'!F22 -> 15.83333333
A95: TOTAL DO MÓDULO 5 | D95: =TRUNC(SUM(D93:D94),2) -> 260.14
A97: MÓDULO 6 – CUSTOS INDIRETOS, TRIBUTOS E LUCRO
A98: 6 | B98: CUSTOS INDIRETOS, TRIBUTOS E LUCRO | C98: % | D98: VALOR (R$)
A99: A | B99: Custos Indiretos | C99: 0.05 | D99: =TRUNC(C99*D116,2) -> 249.09
A100: B | B100: Subtotal 1 (A + Total Custos Diretos) | D100: =D99+D116 -> 5231
A101: C | B101: Lucro | C101: 0.1 | D101: =TRUNC(C101*(D99+D116),2) -> 523.1
A102: D | B102: Subtotal 2 (B+C) | D102: =D100+D101 -> 5754.1
A103: E | B103: TRIBUTOS Tributos (estimado com base no Lucro Presumido - a empresa deverá preencher de acordo com o regime tributário a que é submetida) - (E=(D/(1-Tributos%))x(Tributos%) | C103: 0.0865 | D103: =(D102/(1-C103))*C103 -> 544.8600438
A104: E.1 | B104: COFINS | C104: 0.03
A105: E.2 | B105: PIS | C105: 0.0065
A106: E.3 | B106: ISS | C106: 0.05
A107: TOTAL DO MÓDULO 6 (A+C+E) | D107: =D99+D101+D103 -> 1317.050044
A109: QUADRO RESUMO DO CUSTO POR EMPREGADO
A110: Módulo | D110: VALOR (R$)
A111: A | B111: =A22 -> MÓDULO 1 - COMPOSIÇÃO DA REMUNERAÇÃO | D111: =D30 -> 2226.4
A112: B | B112: =A32 -> MÓDULO 2 – ENCARGOS E BENEFÍCIOS ANUAIS, MENSAIS E DIÁRIOS | D112: =D62 -> 1788.37
A113: C | B113: =A64 -> MÓDULO 3 – PROVISÃO PARA RESCISÃO | D113: =D71 -> 211.01
A114: D | B114: =A73 -> MÓDULO 4 – CUSTO DE REPOSIÇÃO DO PROFISSIONAL AUSENTE | D114: =D89 -> 495.99
A115: E | B115: =A91 -> MÓDULO 5 – INSUMOS DIVERSOS | D115: =D95 -> 260.14
A116: Subtotal (A + B + C + D + E) - Custos Diretos | D116: =TRUNC(SUM(D111:D115),2) -> 4981.91
A117: F | B117: =A97 -> MÓDULO 6 – CUSTOS INDIRETOS, TRIBUTOS E LUCRO | D117: =D107 -> 1317.050044
A118: PREÇO TOTAL POR EMPREGADO / MÊS (CUSTO FIXO) | D118: =D117+D116 -> 6298.960044

Sheet Insumos - Módulo 5
A1: MÓDULO 5 – INSUMOS DIVERSOS
A2: Formação de Preços de Insumos (por posto)
A3: Uniforme
A4: Descrição | B4: Quantidade | C4: Unidade | D4: Valor Unitário | E4: Valor Anual | F4: Valor Mensal
A5: Bota | B5: 2 | C5: Par | D5: 356.5 | E5: =D5*B5 -> 713 | F5: =E5/12 -> 59.41666667
A6: Capacete | B6: 1 | C6: Unidade | D6: 58.25 | E6: 58.25 | F6: 4.854166667
A7: Crachá | B7: 1 | C7: Unidade | D7: 3.87 | E7: 3.87 | F7: 0.3225
A8: Luvas | B8: =5*12 -> 60 | C8: Par | D8: 10 | E8: 600 | F8: 50
A9: Macacão (c/ logo da contratada) | B9: 3 | C9: Unidade | D9: 253.11 | E9: 759.33 | F9: 63.2775
A10: Meias | B10: =5*12 -> 60 | C10: Par | D10: 2.75 | E10: =D10*B10 -> 165 | F10: =E10/12 -> 13.75
A11: Óculos EPI | B11: =2*12 -> 24 | C11: Unidade | D11: 4.75 | E11: 114 | F11: 9.5
A12: Protetor Auricular | B12: =1*12 -> 12 | C12: Unidade | D12: 1.18 | E12: 14.16 | F12: 1.18
A13: Protetor Auricular Concha | B13: 1 | C13: Unidade | D13: 85 | E13: 85 | F13: =E13/12 -> 7.083333333
A14: Protetor Solar | B14: 1 | C14: Unidade | D14: 11.17 | E14: 11.17 | F14: 0.9308333333
A15: Respirador PFF1 | B15: =20*12/2 -> 120 | C15: Unidade | D15: 1.94 | E15: 232.8 | F15: =E15/12 -> 19.4
A16: Respirador PFF2 | B16: =20*12/2 -> 120 | C16: Unidade | D16: 1.46 | E16: 175.2 | F16: 14.6
A17: Total | E17: =SUM(E5:E16) -> 2931.78 | F17: 244.315
A19: Cetificado Digital - A3
A20: Descrição | B20: Quantidade | C20: Unidade | D20: Valor Unitário | E20: Valor Anual | F20: Valor Mensal
A21: Cetificado Digital - A3 (Somente para motoristas) | B21: 1 | C21: Unidade | D21: 190 | E21: =D21*B21 -> 190 | F21: =E21/12 -> 15.83333333
A22: Total | E22: =SUM(E21) -> 190 | F22: =SUM(F21) -> 15.83333333
A24: TOTAL INSUMOS
A25: Descrição | E25: Valor Anual | F25: Valor Mensal
A26: =A3 -> Uniforme | E26: =E17 -> 2931.78 | F26: =F17 -> 244.315
A27: Cetificado Digital - A3 Motoristas (Somente para motoristas) | E27: =E22 -> 190 | F27: =F22 -> 15.83333333
A28: Total | E28: =SUM(E26:E27) -> 3121.78 | F28: =E28/12 -> 260.1483333

Sheet Diárias - Módulo 7
A1: MÓDULO 7 - DIÁRIAS (CUSTOS VARIÁVEIS)
A2: Formação de Preços de Diárias (por posto)
A3: Valor da Diária - CAPITAL
A4: Diária a ser paga ao colaborador | C4: 345.08
A6: Tributos a serem retidos
A7: ISS | B7: 0.05 | C7: =C11*B7 -> 20.16832262
A8: TRIBUTOS FEDERAIS (IN RFB 1234/2012) | B8: 0.0945 | C8: =C11*B8 -> 38.11812975
A9: Total | B9: =SUM(B7:B8) -> 0.1445 | C9: =SUM(C7:C8) -> 58.28645237
A11: Preço total de 1 (uma) diária em capital para 1 (um) posto | C11: =(C4/0.8555) -> 403.3664524
A13: Valor da Diária - DEMAIS LOCALIDADES
A14: Diária a ser paga ao colaborador | C14: 252.8
A16: Tributos a serem retidos
A17: ISS | B17: 0.05 | C17: =C21*B17 -> 14.77498539
A18: TRIBUTOS FEDERAIS (IN RFB 1234/2012) | B18: 0.0945 | C18: =C21*B18 -> 27.92472238
A19: Total | B19: =SUM(B17:B18) -> 0.1445 | C19: =SUM(C17:C18) -> 42.69970777
A21: Preço total de 1 (uma) diária nas demais localidades para 1 (um) posto | C21: =(C14/0.8555) -> 295.4997078
A23: TOTAL DIÁRIAS / MÊS
A24: Quantidade de diárias por mês para cada posto | B24: Diárias | C24: Valor
A25: Diárias/mês por posto (capital) | B25: 0 | C25: =B25*C11 -> 0
A26: Diárias/mês por posto (demais localidades) | B26: =4*4 -> 16 | C26: =B26*C21 -> 4727.995324
A27: Total | B27: =SUM(B25:B26) -> 16 | C27: =C25+C26 -> 4727.995324
A29: * Não haverá incidência de percentual de lucro sobre o custo da diária;
A30: * O modelo aqui apresentado serve de referência, e apresenta os percentuais máximos de retenção de tributos. A contratada deverá justificar os percentuais de retenção, conforme a legislação aplicável, caso sejam diferentes;
A31: * Fórmula do preço total de uma diária (valor bruto): Diária a ser pago ao motorista * 0,8555
A32: * Tributos calculados através do coeficiente (1 - (5% + 9,45%)) = 0,8555
A33: * Planilha a ser apresentada somente no momento da apresentação da fatura mensal, visando ao reembolso das despesas com diárias efetivamente pagas.
